bitfinex/quotes_BTCUSD_20230904
["timestamp","ask_amount","ask_price","bid_price","bid_amount"]
[1693838375015,3.52492758,25903.0,25902.0,0.002]
[1693838375199,3.52564758,25903.0,25902.0,0.002]
[1693838375397,3.52912758,25903.0,25902.0,0.002]
[1693838375605,3.52936758,25903.0,25902.0,0.002]
[1693838375807,3.53002758,25903.0,25902.0,0.002]
[1693838375977,3.53008758,25903.0,25902.0,0.002]
[1693838376139,3.53158758,25903.0,25902.0,0.002]
[1693838376344,3.53074758,25903.0,25902.0,0.002]
[1693838376549,3.52492758,25903.0,25902.0,0.002]
[1693838376749,3.52252758,25903.0,25902.0,0.002]
[1693838376952,3.52792758,25903.0,25902.0,0.002]
[1693838377152,3.52786758,25903.0,25902.0,0.002]
[1693838377354,3.52780758,25903.0,25902.0,0.002]
[1693838377555,3.52828758,25903.0,25902.0,0.002]
[1693838377757,3.52162758,25903.0,25902.0,0.002]
[1693838377999,3.52042758,25903.0,25902.0,0.002]
[1693838378215,3.51796758,25903.0,25902.0,0.002]
[1693838378441,3.51430758,25903.0,25902.0,0.002]
[1693838378646,3.51418758,25903.0,25902.0,0.002]
[1693838379069,3.51370758,25903.0,25902.0,0.002]
[1693838379404,3.51442758,25903.0,25902.0,0.002]
[1693838379814,3.70015611,25903.0,25902.0,0.002]
[1693838379984,3.70123611,25903.0,25902.0,0.002]
[1693838380158,3.69913611,25903.0,25902.0,0.002]
[1693838380366,3.69877611,25903.0,25902.0,0.002]
[1693838380836,3.69883611,25903.0,25902.0,0.002]
[1693838380989,3.69655611,25903.0,25902.0,0.002]
[1693838381200,3.69661611,25903.0,25902.0,0.002]
[1693838381444,3.69667611,25903.0,25902.0,0.002]
[1693838381562,3.69685611,25903.0,25902.0,0.002]
[1693838381764,2.91850511,25903.0,25902.0,0.002]
[1693838381963,2.89672511,25903.0,25902.0,0.002]
[1693838382251,2.89804511,25903.0,25902.0,0.002]
[1693838382429,2.12521411,25903.0,25902.0,0.002]
[1693838382634,2.11243411,25903.0,25902.0,0.002]
[1693838382832,1.27402311,25903.0,25902.0,0.002]
[1693838383059,0.88693633,25903.0,25902.0,0.002]
[1693838383187,0.88693633,25903.0,25902.0,0.0253753]
[1693838383429,0.88693633,25903.0,25902.0,0.002]
[1693838384911,0.95239633,25903.0,25902.0,0.002]
[1693838385140,1.65904733,25903.0,25902.0,0.002]
[1693838385663,0.88693633,25903.0,25902.0,0.002]
[1693838386917,0.65540533,25903.0,25902.0,0.002]
[1693838387535,0.72272533,25903.0,25902.0,0.002]
[1693838387899,0.72986533,25903.0,25902.0,0.002]
[1693838388102,0.72998533,25903.0,25902.0,0.002]
[1693838388336,0.73016533,25903.0,25902.0,0.002]
[1693838388591,1.50365633,25903.0,25902.0,0.002]
[1693838388823,1.50431633,25903.0,25902.0,0.002]
[1693838389061,1.50305633,25903.0,25902.0,0.002]
[1693838389313,1.50425633,25903.0,25902.0,0.002]
[1693838389551,1.50467633,25903.0,25902.0,0.002]
[1693838389806,1.50485633,25903.0,25902.0,0.002]
[1693838390076,0.73274533,25903.0,25902.0,0.002]
[1693838390318,0.65540533,25903.0,25902.0,0.002]
[1693838390527,0.72032533,25903.0,25902.0,0.002]
[1693838390742,0.72434533,25903.0,25902.0,0.002]
[1693838390982,0.72440533,25903.0,25902.0,0.002]
[1693838391281,0.72446533,25903.0,25902.0,0.002]
[1693838391474,1.49681633,25903.0,25902.0,0.002]
[1693838391679,1.49639633,25903.0,25902.0,0.002]
[1693838391859,1.65904733,25903.0,25902.0,0.002]
[1693838393868,1.72426733,25903.0,25902.0,0.002]
[1693838394402,1.72432733,25903.0,25902.0,0.002]
[1693838394608,1.72438733,25903.0,25902.0,0.002]
[1693838394817,3.28216933,25903.0,25902.0,0.002]
[1693838395025,3.28360933,25903.0,25902.0,0.002]
[1693838395464,3.28390933,25903.0,25902.0,0.002]
[1693838395667,3.28384933,25903.0,25902.0,0.002]
[1693838395873,3.28390933,25903.0,25902.0,0.002]
[1693838396075,3.28366933,25903.0,25902.0,0.002]
[1693838396594,3.28360933,25903.0,25902.0,0.002]
[1693838396971,3.29452933,25903.0,25902.0,0.002]
[1693838397177,3.30424933,25903.0,25902.0,0.002]
[1693838397382,3.54698758,25903.0,25902.0,0.002]
[1693838397533,4.34846758,25903.0,25902.0,0.002]
[1693838397756,4.32842758,25903.0,25902.0,0.002]
[1693838397972,4.35038758,25903.0,25902.0,0.002]
[1693838398178,5.15068344,25903.0,25902.0,0.002]
[1693838398378,5.27900344,25903.0,25902.0,0.002]
[1693838398583,5.68338344,25903.0,25902.0,0.002]
[1693838398837,5.95796029,25903.0,25902.0,0.002]
[1693838399035,5.95472029,25903.0,25902.0,0.002]
[1693838399259,5.95316029,25903.0,25902.0,0.002]
[1693838399464,5.83350029,25903.0,25902.0,0.002]
[1693838399670,5.82846029,25903.0,25902.0,0.002]
[1693838400070,5.85882029,25903.0,25902.0,0.002]
[1693838400275,5.85174029,25903.0,25902.0,0.002]
[1693838400548,5.84634029,25903.0,25902.0,0.002]
[1693838400752,5.85414029,25903.0,25902.0,0.002]
[1693838400967,5.87346029,25903.0,25902.0,0.002]
[1693838401191,5.88114029,25903.0,25902.0,0.002]
[1693838401409,5.88126029,25903.0,25902.0,0.002]
[1693838401638,5.98880029,25903.0,25902.0,0.002]
[1693838401852,6.48006009,25903.0,25902.0,0.002]
[1693838402060,6.48330009,25903.0,25902.0,0.002]
[1693838402279,6.50238009,25903.0,25902.0,0.002]
[1693838402494,0.04,25896.0,25894.0,0.04915998]
[1693838402710,0.04,25896.0,25889.0,0.154502]
[1693838402711,2.96686849,25895.0,25889.0,0.154502]
[1693838402930,2.96686849,25895.0,25890.0,0.12637849]
[1693838402931,0.1079,25891.0,25890.0,0.12637849]
[1693838403148,0.26273471,25891.0,25890.0,0.12637849]
[1693838403358,0.26273471,25891.0,25890.0,0.077249]
[1693838403564,0.1079,25891.0,25890.0,0.077249]
[1693838403996,0.1079,25891.0,25889.0,0.154502]
[1693838404404,0.1099,25891.0,25889.0,0.077251]
[1693838405231,0.1099,25891.0,25889.0,0.154503]
[1693838405775,0.884369,25891.0,25888.0,0.429708]
[1693838405972,0.884369,25891.0,25888.0,0.154508]
[1693838405973,0.951989,25891.0,25888.0,0.154508]
[1693838406178,0.956489,25891.0,25888.0,0.154508]
[1693838406422,0.956369,25891.0,25888.0,0.154508]
[1693838406623,0.954909,25891.0,25888.0,0.154508]
[1693838406827,0.955169,25891.0,25888.0,0.154508]
[1693838407148,0.953349,25891.0,25888.0,0.154508]
[1693838407349,0.953169,25891.0,25888.0,0.154508]
[1693838407641,0.954629,25891.0,25888.0,0.154508]
[1693838407846,0.952329,25891.0,25888.0,0.154508]
[1693838408080,0.951849,25891.0,25888.0,0.154508]
[1693838408285,0.953129,25891.0,25888.0,0.154508]
[1693838408686,0.952829,25891.0,25888.0,0.154508]
[1693838408896,0.952169,25891.0,25888.0,0.077254]
[1693838409113,0.1079,25889.0,25887.0,0.310613]
[1693838409324,0.1079,25889.0,25886.0,0.345519]
[1693838409523,0.1079,25889.0,25886.0,0.154519]
[1693838410505,0.2999,25889.0,25886.0,0.154519]
[1693838412141,0.3019,25889.0,25886.0,0.154519]
[1693838412536,0.2999,25889.0,25886.0,0.154519]
[1693838412912,0.3019,25889.0,25886.0,0.154519]
[1693838415273,0.3019,25889.0,25886.0,0.23178]
[1693838416724,0.3019,25889.0,25886.0,0.49344341]
[1693838417653,0.3019,25889.0,25887.0,0.09596242]
[1693838417922,0.3019,25889.0,25888.0,0.30902]
[1693838418140,0.194,25889.0,25888.0,0.30902]
[1693838418548,0.192,25889.0,25888.0,0.30902]
[1693838419185,0.194,25889.0,25888.0,0.30902]
[1693838419387,0.192,25889.0,25888.0,0.30902]
[1693838419816,0.194,25889.0,25888.0,0.30902]
[1693838422957,0.17534,25891.0,25888.0,0.30902]
[1693838423159,0.1079,25891.0,25888.0,0.30902]
[1693838424419,0.175,25891.0,25888.0,0.5279375]
[1693838424626,0.1099,25891.0,25889.0,0.12516753]
[1693838424831,0.002,25891.0,25890.0,0.386245]
[1693838425039,0.002,25891.0,25890.0,1.969872]
[1693838425255,0.002,25891.0,25890.0,3.28312]
[1693838425464,0.002,25891.0,25890.0,3.939744]
[1693838425642,0.004,25891.0,25890.0,3.28312]
[1693838425850,0.002,25891.0,25890.0,3.28312]
[1693838426019,0.06776,25891.0,25890.0,2.626496]
[1693838426223,0.06764,25891.0,25890.0,2.626496]
[1693838426433,0.004,25891.0,25890.0,2.628496]
[1693838427701,0.002,25891.0,25890.0,2.628496]
[1693838427907,0.0683,25891.0,25890.0,2.628496]
[1693838428120,0.004,25891.0,25890.0,2.629496]
[1693838429102,0.06842,25891.0,25890.0,2.627496]
[1693838429313,0.08352,25892.0,25890.0,2.626496]
[1693838429511,0.002,25891.0,25890.0,2.626496]
[1693838429718,0.005,25891.0,25890.0,2.626496]
[1693838430135,0.003,25891.0,25890.0,2.626496]
[1693838432634,0.03730897,25891.0,25890.0,2.626496]
[1693838432844,0.03930897,25891.0,25890.0,2.626496]
[1693838436278,0.03930897,25891.0,25887.0,0.32917944]
[1693838436480,0.19414368,25891.0,25887.0,0.22127944]
[1693838436728,0.03930897,25891.0,25887.0,0.22127944]
[1693838437179,0.03730897,25891.0,25890.0,0.926997]
[1693838437607,0.03430897,25891.0,25890.0,0.926997]
[1693838437821,0.03730897,25891.0,25890.0,0.926997]
[1693838438022,0.04030897,25891.0,25890.0,0.926997]
[1693838438600,0.03730897,25891.0,25890.0,0.926997]
[1693838439007,0.04030897,25891.0,25890.0,0.926997]
[1693838439204,0.03730897,25891.0,25890.0,0.926997]
[1693838439531,0.03930897,25891.0,25890.0,0.926997]
[1693838444490,0.03930897,25891.0,25890.0,1.17959982]
[1693838448069,0.03930897,25891.0,25890.0,1.28749982]
[1693838459068,0.03930897,25891.0,25890.0,1.31863821]
[1693838481100,0.03930897,25891.0,25890.0,1.28749982]
[1693838482528,0.03930897,25891.0,25890.0,1.034897]
[1693838482733,0.03930897,25891.0,25890.0,0.926997]
[1693838489992,0.03930897,25891.0,25890.0,1.19382571]
[1693838495355,0.03930897,25891.0,25890.0,1.18882571]
[1693838497935,0.03930897,25891.0,25890.0,1.29672571]
[1693838500383,0.03930897,25891.0,25890.0,1.32788]
[1693838508085,0.03930897,25891.0,25890.0,1.06105129]
[1693838508997,0.03930897,25891.0,25890.0,1.31298383]
[1693838518776,0.03930897,25891.0,25890.0,1.029897]
[1693838522807,0.46027174,25891.0,25890.0,0.921997]
[1693838523380,0.53503174,25891.0,25890.0,0.921997]
[1693838523582,0.53461174,25891.0,25890.0,0.921997]
[1693838523782,0.53431174,25891.0,25890.0,0.921997]
[1693838524006,0.53383174,25891.0,25890.0,0.921997]
[1693838524235,0.53353174,25891.0,25890.0,0.921997]
[1693838524423,0.53485174,25891.0,25890.0,0.921997]
[1693838524641,0.53305174,25891.0,25890.0,0.921997]
[1693838524863,0.53419174,25891.0,25890.0,0.921997]
[1693838525056,0.73404621,25891.0,25890.0,0.921997]
[1693838525331,0.75180621,25891.0,25890.0,0.921997]
[1693838525731,0.74838621,25891.0,25890.0,0.921997]
[1693838525901,0.74748621,25891.0,25890.0,0.921997]
[1693838526255,0.74694621,25891.0,25890.0,0.921997]
[1693838526455,0.74592621,25891.0,25890.0,0.921997]
[1693838526683,0.74562621,25891.0,25890.0,0.921997]
[1693838526886,0.74538621,25891.0,25890.0,0.921997]
[1693838527041,0.93346621,25891.0,25890.0,0.921997]
[1693838527263,0.84235174,25891.0,25890.0,0.921997]
[1693838527467,0.84211174,25891.0,25890.0,0.921997]
[1693838527666,0.84205174,25891.0,25890.0,0.921997]
[1693838527872,0.83995174,25891.0,25890.0,0.921997]
[1693838528046,0.83959174,25891.0,25890.0,0.921997]
[1693838528291,0.84367174,25891.0,25890.0,0.303999]
[1693838528495,0.94156621,25891.0,25890.0,0.308999]
[1693838528718,0.94000621,25891.0,25890.0,0.308999]
[1693838528918,0.93904621,25891.0,25890.0,0.308999]
[1693838529120,0.93880621,25891.0,25890.0,0.308999]
[1693838529320,0.84667174,25891.0,25890.0,0.308999]
[1693838529581,0.93896622,25891.0,25890.0,0.308999]
[1693838529751,0.94262622,25891.0,25890.0,0.308999]
[1693838530118,0.94178622,25891.0,25890.0,0.308999]
[1693838530342,0.94226622,25891.0,25890.0,0.308999]
[1693838530542,0.84889174,25891.0,25890.0,0.308999]
[1693838530746,0.84883174,25891.0,25890.0,0.308999]
[1693838531045,0.84697174,25891.0,25890.0,0.308999]
[1693838531262,0.84643174,25891.0,25890.0,0.308999]
[1693838531467,0.93920622,25891.0,25890.0,0.308999]
[1693838531605,0.93908622,25891.0,25889.0,0.618003]
[1693838531810,0.38708678,25890.0,25889.0,0.618003]
[1693838532053,0.45806678,25890.0,25889.0,0.618003]
[1693838532253,0.49165143,25890.0,25889.0,0.618003]
[1693838532512,0.49117143,25890.0,25889.0,0.618003]
[1693838532825,0.49039143,25890.0,25889.0,0.618003]
[1693838533028,0.49109143,25890.0,25889.0,0.620003]
[1693838533251,0.49037143,25890.0,25889.0,0.620003]
[1693838533451,0.48905143,25890.0,25889.0,0.620003]
[1693838533675,0.49107143,25890.0,25889.0,0.621003]
[1693838533875,0.49083143,25890.0,25889.0,0.621003]
[1693838534059,0.49161143,25890.0,25889.0,0.621003]
[1693838534258,0.49155143,25890.0,25889.0,0.621003]
[1693838534497,0.49013143,25890.0,25889.0,0.620003]
[1693838534680,0.48983143,25890.0,25889.0,0.620003]
[1693838534885,0.49047143,25890.0,25889.0,0.621003]
[1693838535043,0.48829143,25890.0,25889.0,0.618003]
[1693838535246,0.50105143,25890.0,25889.0,0.620003]
[1693838535430,0.50069143,25890.0,25889.0,0.620003]
[1693838535626,0.50143143,25890.0,25889.0,0.618003]
[1693838535875,0.50101143,25890.0,25889.0,0.618003]
[1693838536088,0.51177143,25890.0,25889.0,0.618003]
[1693838536282,0.51165143,25890.0,25889.0,0.309]
[1693838536483,0.51723143,25890.0,25889.0,0.309]
[1693838536658,0.51519143,25890.0,25889.0,0.309]
[1693838537029,0.51459143,25890.0,25889.0,0.309]
[1693838537209,0.51525143,25890.0,25889.0,0.309]
[1693838537363,0.51393143,25890.0,25889.0,0.309]
[1693838537563,0.51495143,25890.0,25889.0,0.309]
[1693838537766,0.51459143,25890.0,25889.0,0.309]
[1693838538121,0.51417143,25890.0,25889.0,0.309]
[1693838538289,0.51387143,25890.0,25889.0,0.309]
[1693838538460,0.51267143,25890.0,25889.0,0.309]
[1693838538659,0.51027143,25890.0,25889.0,0.618011]
[1693838538864,0.44391143,25890.0,25889.0,0.618011]
[1693838541644,0.05682465,25890.0,25889.0,1.22309814]
[1693838541846,0.05682465,25890.0,25889.0,1.33099814]
[1693838542909,0.05682465,25890.0,25889.0,1.22309814]
[1693838547060,0.44391143,25890.0,25889.0,0.927022]
[1693838549546,0.05682465,25890.0,25889.0,1.19238583]
[1693838552960,0.05682465,25890.0,25889.0,0.927022]
[1693838566066,0.44391143,25890.0,25889.0,0.927022]
[1693838566679,0.44391143,25890.0,25889.0,0.618011]
[1693838572756,0.44391143,25890.0,25889.0,0.927022]
[1693838580723,0.53656591,25890.0,25889.0,0.927022]
[1693838581648,0.53656591,25890.0,25889.0,0.618011]
[1693838598455,0.53656591,25890.0,25889.0,0.309]
[1693838600664,0.53656591,25890.0,25889.0,0.618011]
[1693838604205,0.53656591,25890.0,25889.0,0.927022]
[1693838612148,0.05682465,25890.0,25889.0,1.16798421]
[1693838613809,0.05682465,25890.0,25889.0,0.927022]
[1693838614015,0.44391143,25890.0,25889.0,0.927022]
[1693838617583,0.44391143,25890.0,25889.0,1.15310548]
[1693838621814,0.05682465,25890.0,25889.0,1.46211648]
[1693838644431,0.05682465,25890.0,25889.0,1.652944]
[1693838645054,0.05682465,25890.0,25889.0,1.89941508]
[1693838648220,0.24682465,25890.0,25889.0,1.89941508]
[1693838650082,0.24682465,25890.0,25889.0,1.672944]
[1693838650284,0.24682465,25890.0,25889.0,1.972944]
[1693838650892,0.23582465,25890.0,25889.0,1.972944]
[1693838651087,0.22382465,25890.0,25889.0,2.22009634]
[1693838651340,0.22582465,25890.0,25889.0,2.22309634]
[1693838651543,0.22782465,25890.0,25889.0,2.22609634]
[1693838651746,0.22382465,25890.0,25889.0,2.22009634]
[1693838652170,0.23582465,25890.0,25889.0,2.22009634]
[1693838652370,0.22382465,25890.0,25889.0,2.22009634]
[1693838652727,0.22482465,25890.0,25889.0,2.22309634]
[1693838654165,0.23582465,25890.0,25889.0,2.22309634]
[1693838654664,0.22482465,25890.0,25889.0,2.22309634]
[1693838654875,0.22582465,25890.0,25889.0,2.22609634]
[1693838656953,0.22582465,25890.0,25889.0,1.89708534]
[1693838657153,0.22582465,25890.0,25889.0,1.91708534]
[1693838686036,0.22582465,25890.0,25889.0,1.669933]
[1693838686659,0.22582465,25890.0,25889.0,1.743913]
[1693838686861,0.22582465,25890.0,25889.0,1.750513]
[1693838687066,0.22582465,25890.0,25889.0,1.757473]
[1693838687272,0.22582465,25890.0,25889.0,1.754473]
[1693838687475,0.22582465,25890.0,25889.0,1.754293]
[1693838687686,0.22582465,25890.0,25889.0,1.780873]
[1693838687935,0.22582465,25890.0,25889.0,1.765213]
[1693838688196,0.22582465,25890.0,25889.0,1.783573]
[1693838688399,0.22582465,25890.0,25889.0,1.763233]
[1693838688602,0.22582465,25890.0,25889.0,1.763773]
[1693838688732,0.22582465,25890.0,25889.0,1.739693]
[1693838688939,0.22582465,25890.0,25889.0,1.721513]
[1693838689140,0.22582465,25890.0,25889.0,1.724993]
[1693838689350,0.22582465,25890.0,25889.0,1.726793]
[1693838689556,0.22582465,25890.0,25889.0,1.731773]
[1693838689753,0.22582465,25890.0,25889.0,1.732733]
[1693838689991,0.22582465,25890.0,25889.0,1.730693]
[1693838690197,0.22582465,25890.0,25889.0,1.622313]
[1693838690484,0.22582465,25890.0,25889.0,1.625973]
[1693838690687,0.22582465,25890.0,25889.0,1.626333]
[1693838690892,0.22582465,25890.0,25889.0,1.624473]
[1693838691099,0.22582465,25890.0,25889.0,1.624293]
[1693838691322,0.22582465,25890.0,25889.0,1.766393]
[1693838691526,0.22582465,25890.0,25889.0,1.771973]
[1693838691704,0.22582465,25890.0,25889.0,1.771253]
[1693838691937,0.22582465,25890.0,25889.0,1.770533]
[1693838692143,0.22582465,25890.0,25889.0,1.764773]
[1693838692320,0.22582465,25890.0,25889.0,1.758113]
[1693838692827,0.22582465,25890.0,25889.0,1.758953]
[1693838693253,0.22582465,25890.0,25889.0,1.758893]
[1693838693364,0.22582465,25890.0,25889.0,1.758773]
[1693838693570,0.22582465,25890.0,25889.0,1.758413]
[1693838693823,0.22582465,25890.0,25889.0,1.758353]
[1693838694003,0.22582465,25890.0,25889.0,1.758233]
[1693838694179,0.22582465,25890.0,25889.0,1.759253]
[1693838694883,0.22582465,25890.0,25889.0,1.758953]
[1693838695141,0.22582465,25890.0,25889.0,1.758233]
[1693838695378,0.22582465,25890.0,25889.0,1.759973]
[1693838695588,0.22582465,25890.0,25889.0,1.758773]
[1693838695794,0.22582465,25890.0,25889.0,1.650873]
[1693838696008,0.22582465,25890.0,25889.0,1.651113]
[1693838696225,0.22582465,25890.0,25889.0,1.650993]
[1693838696431,0.22582465,25890.0,25889.0,1.649493]
[1693838696635,0.22582465,25890.0,25889.0,1.649253]
[1693838696944,0.22582465,25890.0,25889.0,1.649373]
[1693838697666,0.22582465,25890.0,25889.0,1.650453]
[1693838697871,0.22582465,25890.0,25889.0,1.649313]
[1693838698058,0.22582465,25890.0,25889.0,1.649253]
[1693838698254,0.22582465,25890.0,25889.0,1.649193]
[1693838698455,0.22582465,25890.0,25889.0,1.649133]
[1693838698664,0.22582465,25890.0,25889.0,1.649073]
[1693838698872,0.22582465,25890.0,25889.0,1.649493]
[1693838699006,0.22582465,25890.0,25889.0,1.649433]
[1693838699213,0.22582465,25890.0,25889.0,1.647513]
[1693838699429,0.22582465,25890.0,25889.0,1.646973]
[1693838699627,0.22582465,25890.0,25889.0,1.647873]
[1693838699834,0.22582465,25890.0,25889.0,1.648173]
[1693838700257,0.22582465,25890.0,25889.0,1.649073]
[1693838700449,0.22582465,25890.0,25889.0,1.646433]
[1693838700647,0.22582465,25890.0,25889.0,1.336413]
[1693838700873,0.22582465,25890.0,25889.0,1.318293]
[1693838701116,0.22582465,25890.0,25889.0,1.315053]
[1693838701381,0.22582465,25890.0,25889.0,1.314453]
[1693838701629,0.22582465,25890.0,25889.0,1.315413]
[1693838701855,0.22582465,25890.0,25889.0,1.315713]
[1693838702083,0.22582465,25890.0,25889.0,1.313013]
[1693838702312,0.22582465,25890.0,25889.0,1.315113]
[1693838702540,0.22582465,25890.0,25889.0,1.311513]
[1693838702880,0.61291143,25890.0,25889.0,0.933022]
[1693838704290,0.61191143,25890.0,25889.0,0.930022]
[1693838704765,0.62291143,25890.0,25889.0,0.930022]
[1693838705274,0.62191143,25890.0,25889.0,0.927022]
[1693838705517,0.63391143,25890.0,25889.0,0.927022]
[1693838706455,0.6236069,25890.0,25889.0,0.927022]
[1693838709195,0.6236069,25890.0,25889.0,0.992242]
[1693838709460,0.6236069,25890.0,25889.0,1.004302]
[1693838709724,0.6236069,25890.0,25889.0,1.004482]
[1693838709939,0.6236069,25890.0,25889.0,1.005142]
[1693838710194,0.6236069,25890.0,25889.0,1.004902]
[1693838710494,0.6236069,25890.0,25889.0,1.001782]
[1693838710706,0.6236069,25890.0,25889.0,1.002142]
[1693838710948,0.6236069,25890.0,25889.0,1.002382]
[1693838711178,0.6236069,25890.0,25889.0,1.002202]
[1693838711400,0.6236069,25890.0,25889.0,1.002862]
[1693838711636,0.6236069,25890.0,25889.0,1.002322]
[1693838711884,0.6236069,25890.0,25889.0,0.993982]
[1693838712138,0.6236069,25890.0,25889.0,0.995722]
[1693838712382,0.6236069,25890.0,25889.0,0.997282]
[1693838712641,0.6236069,25890.0,25889.0,0.997222]
[1693838712856,0.6236069,25890.0,25889.0,0.997102]
[1693838713092,0.6236069,25890.0,25889.0,0.997042]
[1693838713333,0.6236069,25890.0,25889.0,0.996982]
[1693838713537,0.6236069,25890.0,25889.0,0.996922]
[1693838713740,0.6236069,25890.0,25889.0,0.996562]
[1693838714072,0.6236069,25890.0,25889.0,0.995782]
[1693838714305,0.6236069,25890.0,25889.0,0.995722]
[1693838714564,0.6236069,25890.0,25889.0,0.995962]
[1693838714798,0.6236069,25890.0,25889.0,1.029502]
[1693838714799,0.23652012,25890.0,25889.0,1.029502]
[1693838715033,0.23652012,25890.0,25889.0,1.029322]
[1693838715276,0.23652012,25890.0,25889.0,1.028542]
[1693838715524,0.23652012,25890.0,25889.0,1.021882]
[1693838715774,0.23652012,25890.0,25889.0,1.021762]
[1693838716025,0.23652012,25890.0,25889.0,1.021942]
[1693838716271,0.23652012,25890.0,25889.0,1.020082]
[1693838716478,0.23652012,25890.0,25889.0,1.019902]
[1693838716686,0.23652012,25890.0,25889.0,1.019542]
[1693838716934,0.23652012,25890.0,25889.0,1.015882]
[1693838717183,0.23652012,25890.0,25889.0,1.014922]
[1693838717437,0.23652012,25890.0,25889.0,1.010002]
[1693838717678,0.23652012,25890.0,25889.0,1.010122]
[1693838717968,0.23652012,25890.0,25889.0,1.009882]
[1693838718198,0.23652012,25890.0,25889.0,1.009762]
[1693838718425,0.23652012,25890.0,25889.0,1.010242]
[1693838718674,0.23652012,25890.0,25889.0,1.009822]
[1693838718917,0.23652012,25890.0,25889.0,1.009642]
[1693838719185,0.23652012,25890.0,25889.0,1.009462]
[1693838719432,0.23652012,25890.0,25889.0,1.009222]
[1693838719676,0.23652012,25890.0,25889.0,1.007542]
[1693838719878,0.23652012,25890.0,25889.0,1.008022]
[1693838720085,0.23652012,25890.0,25889.0,1.007962]
[1693838720302,0.23652012,25890.0,25889.0,0.698954]
[1693838720536,0.23652012,25890.0,25889.0,0.698774]
[1693838720763,0.23652012,25890.0,25889.0,0.698654]
[1693838720970,0.23652012,25890.0,25889.0,0.698414]
[1693838721186,0.23652012,25890.0,25889.0,0.698354]
[1693838721394,0.23652012,25890.0,25889.0,1.006645]
[1693838721606,0.23652012,25890.0,25889.0,1.007065]
[1693838721871,0.23652012,25890.0,25889.0,0.999085]
[1693838722084,0.23652012,25890.0,25889.0,0.995245]
[1693838722299,0.23652012,25890.0,25889.0,0.994825]
[1693838722487,0.23652012,25890.0,25889.0,0.994525]
[1693838722893,0.23652012,25890.0,25889.0,0.994825]
[1693838723111,0.23652012,25890.0,25889.0,0.994765]
[1693838723318,0.23652012,25890.0,25889.0,0.993985]
[1693838723536,0.23652012,25890.0,25889.0,0.992485]
[1693838723709,0.23652012,25890.0,25889.0,0.992665]
[1693838723919,0.23652012,25890.0,25889.0,0.993685]
[1693838724269,0.23652012,25890.0,25889.0,0.995065]
[1693838724674,0.23652012,25890.0,25889.0,0.997105]
[1693838724819,0.23652012,25890.0,25889.0,0.996925]
[1693838725240,0.23652012,25890.0,25889.0,0.996865]
[1693838725438,0.23652012,25890.0,25889.0,0.996445]
[1693838725688,0.23652012,25890.0,25889.0,0.996745]
[1693838725890,0.23652012,25890.0,25889.0,0.993025]
[1693838726123,0.23652012,25890.0,25889.0,0.994165]
[1693838726274,0.23652012,25890.0,25889.0,0.996625]
[1693838726495,0.23652012,25890.0,25889.0,0.996265]
[1693838726690,0.23652012,25890.0,25889.0,0.996445]
[1693838726914,0.23652012,25890.0,25889.0,0.996145]
[1693838727127,0.6236069,25890.0,25889.0,0.927025]
[1693838732608,0.63905176,25890.0,25889.0,0.927025]
[1693838737850,0.63905176,25890.0,25889.0,0.92693707]
[1693838738289,0.63905176,25890.0,25889.0,0.99185707]
[1693838738510,0.63905176,25890.0,25889.0,0.92693707]
[1693838739312,0.63905176,25890.0,25889.0,0.99311707]
[1693838739525,0.63905176,25890.0,25889.0,0.92693707]
[1693838739730,0.63905176,25890.0,25889.0,0.99539707]
[1693838739932,0.63905176,25890.0,25889.0,0.99515707]
[1693838740160,0.63905176,25890.0,25889.0,0.99545707]
[1693838740366,0.63905176,25890.0,25889.0,0.99587707]
[1693838740574,0.63905176,25890.0,25889.0,0.99497707]
[1693838740791,0.63905176,25890.0,25889.0,0.99485707]
[1693838741076,0.63905176,25890.0,25889.0,0.99479707]
[1693838741271,0.63905176,25890.0,25889.0,0.99407707]
[1693838741476,0.63905176,25890.0,25889.0,0.99401707]
[1693838741685,0.63905176,25890.0,25889.0,0.99395707]
[1693838741899,0.63905176,25890.0,25889.0,0.99455707]
[1693838742051,0.63905176,25890.0,25889.0,0.99527707]
[1693838742261,0.63905176,25890.0,25889.0,0.99503707]
[1693838742644,0.63905176,25890.0,25889.0,0.99491707]
[1693838742864,0.63905176,25890.0,25889.0,0.99479707]
[1693838743091,0.63905176,25890.0,25889.0,0.99485707]
[1693838743286,0.63905176,25890.0,25889.0,0.99473707]
[1693838743515,0.63905176,25890.0,25889.0,0.99449707]
[1693838743715,0.73170624,25890.0,25889.0,0.99425707]
[1693838743921,0.73170624,25890.0,25889.0,0.99419707]
[1693838744124,0.73170624,25890.0,25889.0,0.99407707]
[1693838744274,0.73170624,25890.0,25889.0,0.99401707]
[1693838744726,0.73170624,25890.0,25889.0,0.99461707]
[1693838744986,0.63905176,25890.0,25889.0,1.27913208]
[1693838745204,0.25196498,25890.0,25889.0,1.30301208]
[1693838745425,0.25196498,25890.0,25889.0,1.31075208]
[1693838745631,0.25196498,25890.0,25889.0,1.31021208]
[1693838745862,0.25196498,25890.0,25889.0,1.31027208]
[1693838746070,0.25196498,25890.0,25889.0,1.30847208]
[1693838746286,0.25196498,25890.0,25889.0,1.30805208]
[1693838746497,0.25196498,25890.0,25889.0,1.30943208]
[1693838746706,0.25196498,25890.0,25889.0,1.30607208]
[1693838746916,0.25196498,25890.0,25889.0,1.30577208]
[1693838747148,0.25196498,25890.0,25889.0,1.30439208]
[1693838747351,0.25196498,25890.0,25889.0,1.30415208]
[1693838747563,0.25196498,25890.0,25889.0,1.30391208]
[1693838747775,0.25196498,25890.0,25889.0,1.30379208]
[1693838747983,0.25196498,25890.0,25889.0,1.30361208]
[1693838748189,0.25196498,25890.0,25889.0,1.30313208]
[1693838748429,0.25196498,25890.0,25889.0,1.30199208]
[1693838748640,0.25196498,25890.0,25889.0,1.30175208]
[1693838748849,0.25196498,25890.0,25889.0,1.30151208]
[1693838749053,0.25196498,25890.0,25889.0,1.30097208]
[1693838749257,0.25196498,25890.0,25889.0,1.71770308]
[1693838749460,0.25196498,25890.0,25889.0,1.89062308]
[1693838749677,0.25196498,25890.0,25889.0,1.89242308]